Cogmind - Beta 11 @@@ ROGUE MODE // 2022.03.24 @ 18:37:03 Player: Dizzar Result: Destroyed by Y-54 Guardian with Gatling Laser Performance ------------- Evolutions (3) 1500 Regions Visited (7) 1400 Robots Destroyed (38) 190 Value Destroyed (1054) 1054 Prototype IDs (26) 520 Alien Tech Used (0) 0 Bonus (640) 640 TOTAL SCORE: 5304 Bonus ------- High Alert Combat Kills 41 Follower Combat Kills 299 Aligned with FarCom 300 Cogmind --------- Core Integrity 0/700 Matter 300/300 Energy 15/240 System Corruption 5% Temperature Cool (39) Movement Core (250) Ox4 Location -7/Storage Parts ------- > --- POWER (2) -------- Nuclear Core > --- PROPULSION (4) --- (None) > --- UTILITY (5) ------ Power Shielding > --- WEAPON (2) ------- Cooled Particle Cannon > --- INVENTORY (5) ---- Authchip [Processor] Skeleton Box Peak State ------------ > --- POWER ------------ Nuclear Core > --- PROPULSION ------- Xenon Bombardment Thruster Xenon Bombardment Thruster Xenon Bombardment Thruster > --- UTILITY ---------- Small Storage Unit Transmission Jammer Power Shielding Propulsion Shielding Improved Light Armor Plating > --- WEAPON ----------- Cooled Particle Cannon Cooled Particle Cannon > --- INVENTORY -------- Nuclear Core Trap Scanner Light Armor Plating Skeleton Box Arc Projector Rocket Launcher [Rating: 36] Favorites ----------- Power Light Nuclear Core Engine Ion Engine Power Core Light Nuclear Core Propulsion Aluminum Leg Leg Aluminum Leg Wheel Wheel Flight Unit Xenon Bombardment Thruster Utility Small Storage Unit Device Trap Scanner Storage Small Storage Unit Protection Light Armor Plating Weapon Small Laser Energy Gun Small Laser Energy Cannon Cooled Particle Cannon Ballistic Gun Assault Rifle Launcher Grenade Launcher Build | -11 -10 -10 -10 -9 -8 -7 -7 ------- Run | Scr Mat Min Exi Min Mat Fac Sto Slots Evolved 6 | . . . . . 4 2 . Power 1 | . . . . . . 1 . Propulsion 2 | . . . . . 1 1 . Utility 3 | . . . . . 3 . . Weapon . | . . . . . . . . Parts Attached 64 | 6 9 . . 2 18 2 27 Power 6 | 1 1 . . . 1 . 3 Engine 2 | 1 . . . . 1 . . Core 4 | . 1 . . . . . 3 Reactor . | . . . . . . . . Propulsion 9 | 2 2 . . . 4 1 . Treads . | . . . . . . . . Leg 3 | . 2 . . . 1 . . Wheel 2 | 2 . . . . . . . Hover . | . . . . . . . . Flight 4 | . . . . . 3 1 . Utility 22 | 1 2 . . . 8 1 10 Device 8 | . 1 . . . 2 . 5 Storage 1 | 1 . . . . . . . Processor . | . . . . . . . . Hackware . | . . . . . . . . Protection 13 | . 1 . . . 6 1 5 Artifact . | . . . . . . . . Weapon 27 | 2 4 . . 2 5 . 14 Energy Gun 6 | . 2 . . . 4 . . Energy Cannon 14 | . . . . . . . 14 Ballistic Gun 3 | 2 1 . . . . . . Ballistic Cannon . | . . . . . . . . Launcher 4 | . 1 . . 2 1 . . Special Weapon . | . . . . . . . . Impact Weapon . | . . . . . . . . Slashing Weapon . | . . . . . . . . Piercing Weapon . | . . . . . . . . Special Melee Weapon . | . . . . . . . . Unidentified Prototypes 1 | . . . . . . . 1 Corrupted Parts 1 | . . . . . . . 1 System Corruption 5 | . . . . . . . 5 Parts Lost 16 | . 2 . . . 3 . 11 Power 2 | . . . . . 1 . 1 Propulsion 5 | . 1 . . . 1 . 3 Utility 6 | . . . . . . . 6 Weapon 3 | . 1 . . . 1 . 1 Highest Loss Streak 10 | . 2 . . . 1 . 10 To Critical Strikes . | . . . . . . . . Average Slot Usage (%) 87 | . 98 100 100 100 90 55 50 Engine 2 | . 9 . . . . 7 . Core 8 | . 4 14 14 14 8 . 4 Leg 14 | . 8 28 28 28 14 . . Wheel 4 | . 19 . . . . . . Flight 6 | . . . . . 11 16 15 Device 6 | . 10 . . . 10 7 8 Storage 10 | . 14 14 14 14 9 7 3 Protection 14 | . 2 14 14 14 25 16 14 Energy Gun 8 | . 7 28 28 13 1 . . Ballistic Gun 4 | . 19 . . . . . . Launcher 5 | . . . . 14 8 . . Naked Turns . | . . . . . . . . Heaviest Build 25 | 14 17 17 17 20 25 15 18 Greatest Support 30 | 20 20 20 20 20 30 18 18 Greatest Overweight (x) 2 | . . . . . 2 . . Average Overweight (x) . | . . . . . . . . Largest Inventory Capacity 8 | 8 8 8 8 8 8 8 8 Average Capacity 7 | 6 8 8 8 8 8 8 6 Most Carried 8 | 4 8 8 8 8 8 8 8 Average Carried 7 | 2 6 8 7 7 6 7 6 Final Capacity 8 | 8 8 8 8 8 8 8 5 Final Carried 8 | 4 8 8 8 8 8 8 2 Class Distribution -------------------- 99% | Mutant Dominant Class ---------------- Mutant | -10/Materials Mutant | -10/Mines Mutant | -10/Exiles Mutant | -9/Mines Mutant | -8/Materials Mutant | -7/Factory Mutant | -7/Storage Resources | -11 -10 -10 -10 -9 -8 -7 -7 ----------- Run | Scr Mat Min Exi Min Mat Fac Sto Matter Collected 1263 | 231 175 . . 139 453 . 265 Remotely . | . . . . . . . . Salvage Created 888 | . 241 . . 136 170 . 341 Parts 63 | . 24 . . 9 9 . 21 Haulers Intercepted 2 | . 1 . . . . . 1 Recyclers Shooed . | . . . . . . . . Parts Field Recycled . | . . . . . . . . Retrieved Matter . | . . . . . . . . Parts Self-Destructed . | . . . . . . . . Prevented . | . . . . . . . . Kills | -11 -10 -10 -10 -9 -8 -7 -7 ------- Run | Scr Mat Min Exi Min Mat Fac Sto Combat Hostiles Destroyed 31 | . 7 . . 10 9 . 5 Guns 4 | . 4 . . . . . . Cannons 5 | . . . . . . . 5 AOE 22 | . 3 . . 10 9 . . Classes Destroyed 8 | . 3 . . 2 1 . 2 Worker 2 | . . . . 1 1 . . Builder 3 | . . . . . 3 . . Hauler 2 | . 1 . . . . . 1 Swarmer 11 | . 3 . . 4 4 . . Grunt 14 | . 4 . . 5 5 . . Duelist 1 | . . . . 1 . . . Sentry 4 | . . . . . . . 4 Programmer 1 | . . . . . . . 1 Best Kill Streak 10 | . 3 . . 4 10 . 3 Combat Bots Only 7 | . 3 . . 4 7 . 3 Max Kills in Single Turn 2 | . 2 . . 2 2 . 1 Gunslinging . | . . . . . . . . Exploded 2 | . 2 . . 2 2 . . Melee . | . . . . . . . . Uniques/NPCs Destroyed . | . . . . . . . . Combat | -11 -10 -10 -10 -9 -8 -7 -7 -------- Run | Scr Mat Min Exi Min Mat Fac Sto Damage Taken 2548 | . 435 . . 165 306 28 1614 Core 837 | . 26 . . 18 92 11 690 Absorbed by Shields . | . . . . . . . . Redirected to Shielding 100 | . . . . . 36 1 63 Core Remaining (%) 88 | 100 . . . 82 83 . . Volleys Fired 74 | . 28 . . 16 16 . 14 Largest 2 | . 2 . . 2 2 . 2 Hottest 105 | . 105 . . 70 63 . 60 Shots Fired 113 | . 44 . . 31 19 . 19 Gun 56 | . 42 . . 12 2 . . Cannon 19 | . . . . . . . 19 Launcher 38 | . 2 . . 19 17 . . Special . | . . . . . . . . Kinetic 40 | . 40 . . . . . . Thermal 33 | . 2 . . 12 . . 19 Explosive 38 | . 2 . . 19 17 . . Electromagnetic 2 | . . . . . 2 . . Robot Hit Streak 18 | . 7 . . 4 4 . 18 Robot Miss Streak 4 | . 4 . . 1 2 . . Penetration Max . | . . . . . . . . Secondary Targets 1 | . 1 . . . . . . Max Gunslinging Chain 1 | . 1 . . . . . . Shots Hit Robots 66 | . 30 . . 10 8 . 18 Core Hits 65 | . 15 . . 14 25 . 11 Critical Kills . | . . . . . . . . Critical Parts Destroyed . | . . . . . . . . Critical Strikes . | . . . . . . . . Melee Attacks . | . . . . . . . . Impact . | . . . . . . . . Slashing . | . . . . . . . . Piercing . | . . . . . . . . Sneak Attacks . | . . . . . . . . Combat Hostiles . | . . . . . . . . Follow-up Attacks . | . . . . . . . . Damage Inflicted 3092 | . 497 . . 907 1162 . 526 Guns 459 | . 414 . . 12 33 . . Cannons 499 | . . . . . . . 499 Explosions 2105 | . 83 . . 895 1127 . . Melee . | . . . . . . . . Ramming 29 | . . . . . 2 . 27 Kinetic 388 | . 388 . . . . . . Thermal 537 | . 26 . . 12 . . 499 Explosive 2105 | . 83 . . 895 1127 . . Electromagnetic 33 | . . . . . 33 . . Impact . | . . . . . . . . Slashing . | . . . . . . . . Piercing . | . . . . . . . . Highest Corruption 5 | . . . . . . . 5 Average Corruption 5 | . . . . . . . 5 Corruption Purged . | . . . . . . . . Corruption Blocked . | . . . . . . . . Effects 2 | . . . . . . . 2 Heat Flow Errors 1 | . . . . . . . 1 Data Loss (minor) 1 | . . . . . . . 1 Overload Shots . | . . . . . . . . Overflow Damage 111 | . . . . 51 52 . 8 Projectiles 8 | . . . . . . . 8 Explosions 103 | . . . . 51 52 . . Melee . | . . . . . . . . Knockbacks . | . . . . . . . . Impact . | . . . . . . . . Kinetic . | . . . . . . . . Secondary . | . . . . . . . . Self-Inflicted Damage 94 | . . . . 32 49 . 13 Shots 3 | . . . . 1 2 . . Rammed 4 | . . . . . . . 4 Targets Rammed 5 | . . . . . 1 . 4 Kicked 1 | . . . . . 1 . . Crushed . | . . . . . . . . Highest Temperature 189 | . 51 . . 161 18 . 189 Average Temperature 40 | . 9 . . 60 7 . 32 Received Heat Transfer 798 | . 219 . . 30 54 6 489 Siege Activations . | . . . . . . . . Robots Corrupted . | . . . . . . . . Combat Hostiles . | . . . . . . . . Parts Fried . | . . . . . . . . Impact Corruptions . | . . . . . . . . Robots Melted . | . . . . . . . . Combat Hostiles . | . . . . . . . . Parts Melted 3 | . 1 . . . . . 2 Heat Transferred 753 | . 62 . . 25 . . 666 Parts Sabotaged . | . . . . . . . . Parts Stolen . | . . . . . . . . Parts Stripped . | . . . . . . . . Power Chain Reactions . | . . . . . . . . Missiles Intercepted . | . . . . . . . . Alert | -11 -10 -10 -10 -9 -8 -7 -7 ------- Run | Scr Mat Min Exi Min Mat Fac Sto Peak Influence 627 | . 189 1 . 337 347 253 627 Initial 115 | . . 1 . . 74 103 115 Average 153 | . 52 1 . 195 183 129 240 Maximum Alert Level 2 | . . . . 1 1 1 2 Low Security (%) 68 | 100 100 100 . 43 72 81 37 Level 1 28 | . . . . 56 27 18 48 Level 2 2 | . . . . . . . 13 Level 3 . | . . . . . . . . Level 4 . | . . . . . . . . Level 5 . | . . . . . . . . High Security . | . . . . . . . . Max Security . | . . . . . . . . Squads Dispatched 9 | . 1 . . . 3 2 3 Investigation 1 | . . . . . 1 . . Extermination 1 | . . . . . . . 1 Reinforcement 7 | . 1 . . . 2 2 2 Assault . | . . . . . . . . Garrison . | . . . . . . . . Intercept . | . . . . . . . . Searches Triggered . | . . . . . . . . Construction Impeded 1 | . . . . . 1 . . Haulers Reinforced 1 | . . . . . . . 1 Active Scanning Responses . | . . . . . . . . Cargo Convoy Interrupts . | . . . . . . . . Stealth | -11 -10 -10 -10 -9 -8 -7 -7 --------- Run | Scr Mat Min Exi Min Mat Fac Sto Distress Signals 2 | . . . . . 1 1 . Communications Jammed 2 | . . . . . . . 2 Distress Signals 1 | . . . . . . . 1 Times Spotted 82 | . 11 . . 10 28 7 26 Peak Tracking Total 11 | . 4 . . 4 8 8 11 Tactical Retreats 6 | . . . . . 1 2 3 Traps | -11 -10 -10 -10 -9 -8 -7 -7 ------- Run | Scr Mat Min Exi Min Mat Fac Sto Traps Triggered 1 | . . . . . . . 1 Indirectly . | . . . . . . . . Trap Hack Attempts . | . . . . . . . . Triggered . | . . . . . . . . Disarmed . | . . . . . . . . Reprogrammed . | . . . . . . . . Reused . | . . . . . . . . Traps Extracted . | . . . . . . . . Installed . | . . . . . . . . Triggered . | . . . . . . . . Most Traps Carried 1 | . . . . 1 . . . Machines | -11 -10 -10 -10 -9 -8 -7 -7 ---------- Run | Scr Mat Min Exi Min Mat Fac Sto Machines Disabled 3 | . . . . 1 2 . . Max in Single Turn 2 | . . . . 1 2 . . Machines Sabotaged . | . . . . . . . . Garrisons Compromised . | . . . . . . . . Overloaded Fab Kills . | . . . . . . . . Hacking | -11 -10 -10 -10 -9 -8 -7 -7 --------- Run | Scr Mat Min Exi Min Mat Fac Sto Machines Accessed 14 | . 4 . 2 . 5 2 1 Terminals 10 | . 4 . . . 4 1 1 Fabricators . | . . . . . . . . Repair Stations . | . . . . . . . . Recycling Units 2 | . . . . . 1 1 . Scanalyzers . | . . . . . . . . Garrison Access . | . . . . . . . . Total Hacks 30 | . 12 . 2 . 13 2 1 Successful 14 | . 6 . 2 . 5 1 . Failed 15 | . 5 . . . 8 1 1 Catastrophic 1 | . . . . . 1 . . Database Lockouts 1 | . 1 . . . . . . Manual 25 | . 11 . 1 . 10 2 1 Terminals 25 | . 12 . . . 11 1 1 Fabricators . | . . . . . . . . Repair Stations . | . . . . . . . . Recycling Units 3 | . . . . . 2 1 . Scanalyzers . | . . . . . . . . Garrison Access . | . . . . . . . . Terminal Hacks 6 | . 3 . 2 . 1 . . Record 1 | . . . 1 . . . . Prototype ID Bank 1 | . 1 . . . . . . Branch Access Points 1 | . 1 . . . . . . Unreport Threat 2 | . 1 . . . 1 . . EX-Prototype ID Bank 1 | . . . 1 . . . . Fabricator Hacks . | . . . . . . . . Repair Station Hacks . | . . . . . . . . Recycling Unit Hacks . | . . . . . . . . Scanalyzer . | . . . . . . . . Garrison Access Hacks . | . . . . . . . . Unauthorized Hacks 8 | . 3 . . . 4 1 . Terminals 6 | . 3 . . . 3 . . Assimilate 2 | . 1 . . . 1 . . Botnet 4 | . 2 . . . 2 . . Fabricators . | . . . . . . . . Repair Stations . | . . . . . . . . Recycling Units 2 | . . . . . 1 1 . Reject 2 | . . . . . 1 1 . Scanalyzers . | . . . . . . . . Garrison Access . | . . . . . . . . Data Cores Recovered . | . . . . . . . . Used . | . . . . . . . . Hacking Detections 11 | . 4 . . . 5 2 . Full Trace Events 1 | . . . . . 1 . . Feedback Events . | . . . . . . . . Feedback Blocked . | . . . . . . . . Robot Schematics Acquired . | . . . . . . . . Robots Built . | . . . . . . . . Authchips . | . . . . . . . . Time . | . . . . . . . . Total Robot Build Rating . | . . . . . . . . Part Schematics Acquired . | . . . . . . . . Parts Built . | . . . . . . . . Authchips . | . . . . . . . . Time . | . . . . . . . . Total Part Build Rating . | . . . . . . . . Parts Repaired . | . . . . . . . . Time . | . . . . . . . . Parts Recycled . | . . . . . . . . Recycled Matter . | . . . . . . . . Retrieved Matter . | . . . . . . . . Retrieved Components . | . . . . . . . . Parts Scanalyzed . | . . . . . . . . Part Schematics Acquired . | . . . . . . . . Parts Damaged . | . . . . . . . . Bothacking | -11 -10 -10 -10 -9 -8 -7 -7 ------------ Run | Scr Mat Min Exi Min Mat Fac Sto Used RIF Installer . | . . . . . . . . Robots Hacked . | . . . . . . . . Non-combat . | . . . . . . . . Combat . | . . . . . . . . Robot Hacks Applied . | . . . . . . . . Relay Couplers Released . | . . . . . . . . Fabnet Peak Effective % . | . . . . . . . . Robots Rewired 1 | . . . . . . . 1 Allies Hacked . | . . . . . . . . Hacks Repelled . | . . . . . . . . Allies | -11 -10 -10 -10 -9 -8 -7 -7 -------- Run | Scr Mat Min Exi Min Mat Fac Sto Total Allies 12 | . 1 . . . 1 . 10 Largest Group 10 | . 1 . . . 1 . 10 Highest-Rated Group 173 | . 10 . . . 26 . 173 Highest-Rated Ally 29 | . 10 . . . 26 . 29 Total Orders 1 | . . . . . 1 . . STAY 1 | . . . . . 1 . . Ally Attacks 76 | . . . . . . . 76 Total Damage 1021 | . . . . . . . 1021 Kills 9 | . . . . . . . 9 Allies Corrupted 1 | . . . . . 1 . . Allies Melted . | . . . . . . . . Intel | -11 -10 -10 -10 -9 -8 -7 -7 ------- Run | Scr Mat Min Exi Min Mat Fac Sto Robot Analysis Total . | . . . . . . . . Derelict Logs Recovered . | . . . . . . . . Drone Launches . | . . . . . . . . Drone Recoveries . | . . . . . . . . Exploration | -11 -10 -10 -10 -9 -8 -7 -7 ------------- Run | Scr Mat Min Exi Min Mat Fac Sto Turns Passed 2352 | 50 487 40 253 454 629 120 319 Spaces Moved 2005 | 47 311 34 210 310 505 318 270 Core 91 | 1 . . . . . . 90 Treads . | . . . . . . . . Legs 837 | . 79 34 210 310 204 . . Wheels 278 | 46 232 . . . . . . Hover . | . . . . . . . . Flight 799 | . . . . . 301 318 180 Fastest Speed 34 | 50 80 120 120 120 34 34 34 Average Speed 77 | 79 90 120 120 120 69 36 39 Slowest Speed 260 | 80 120 120 120 120 260 37 50 Overloaded Moves . | . . . . . . . . Propulsion Burnouts . | . . . . . . . . Robots Hopped 28 | . . . . . 19 2 7 Cave-ins Triggered . | . . . . . . . . Exploration Rate (%) 35 | 3 59 6 59 61 46 12 38 Regions Visited 7 Branch Regions 4 Pre-discovered Areas 1 | . . . 1 . . . . Known Exits Taken 1 | . 1 . . . . . . Unknown Exits Taken 6 | 1 . 1 1 1 1 1 . Scrap Searched 2 | . . . . 2 . . . Spaces Dug 21 | . . . . 21 . . . Terrain Destroyed 268 | . 10 . . 130 127 . 1 Melee . | . . . . . . . . Projectile 1 | . . . . . . . 1 AOE 267 | . 10 . . 130 127 . . Terrain Rammed . | . . . . . . . . Walls Destroyed . | . . . . . . . . Machines Disabled . | . . . . . . . . Actions | -11 -10 -10 -10 -9 -8 -7 -7 --------- Run | Scr Mat Min Exi Min Mat Fac Sto Total 2668 | 56 474 33 211 361 750 319 464 Wait 468 | . 111 . . 28 206 . 123 Move 1945 | 46 310 33 209 309 469 313 256 Hop 25 | . . . . . 16 2 7 Pick Up 32 | 4 9 . 1 3 6 2 7 Fast Attach 16 | 6 5 . . . 4 . 1 Attach 38 | . 3 . . . 12 2 21 Detach 27 | . . . . . 11 . 16 Swap 10 | . 1 . . 2 2 . 5 Drop 24 | . 7 . 1 3 7 . 6 Fire 74 | . 28 . . 16 16 . 14 Melee . | . . . . . . . . Ram 4 | . . . . . . . 4 Kick 1 | . . . . . 1 . . Crush . | . . . . . . . . Escape Stasis . | . . . . . . . . Rewire 4 | . . . . . . . 4 Trap . | . . . . . . . . Miscellaneous . | . . . . . . . . Route ------- -11/Scrapyard -10/Materials (discovered 2 exits: [*Mat] / *Min) -10/Mines -10/Exiles -9/Mines -8/Materials -7/Factory (discovered 2 exits: [*Fac] / *Sto) -7/Storage History --------- Turn | Location | Event 19 | -11/Scrapyard | Discovered new exit (range 16) 51 | -11/Scrapyard | Entered Materials 273 | -10/Materials | Discovered new exit (range 15) 310 | -10/Materials | Build established: Mutant 517 | -10/Materials | Identified exit to Mines 520 | -10/Materials | Central database locked down 538 | -10/Materials | Entered Mines 565 | -10/Mines | Assembled infested the area 573 | -10/Mines | Deemed a non-threat by the Exiles lab entrance 573 | -10/Mines | Discovered new exit (range 5) 578 | -10/Mines | Entered Exiles 608 | -10/Exiles | Met 8R-AWN 630 | -10/Exiles | Met EX-HEX 666 | -10/Exiles | Met EX-BIN 679 | -10/Exiles | Aligned with FarCom system 680 | -10/Exiles | Given EX-Vault access code 708 | -10/Exiles | Opened EX-Vault 717 | -10/Exiles | Found Skeleton Box 741 | -10/Exiles | Warned to stay clear of 0b10 Research branches 776 | -10/Exiles | Met EX-DEC 780 | -10/Exiles | Learned location of Zion (-6) 818 | -10/Exiles | Discovered new exit (range 12) 831 | -10/Exiles | Left Exiles lab with Skeleton Box 831 | -10/Exiles | Entered Mines 1064 | -9/Mines | Found a hidden stash of uninstalled traps 1191 | -9/Mines | Received a Rocket Launcher from a helpful Derelict 1269 | -9/Mines | Discovered new exit (range 12) 1285 | -9/Mines | Entered Materials 1285 | -8/Materials | Evolved 4 slots: Propulsion x1, Utility x3 1575 | -8/Materials | Destroyed 7 combat bots 1912 | -8/Materials | Discovered new exit (range 4) 1914 | -8/Materials | Entered Factory 1914 | -7/Factory | Evolved 2 slots: Power x1, Propulsion x1 1998 | -7/Factory | Discovered new exit (range 15) 2006 | -7/Factory | Discovered new exit (range 10) 2034 | -7/Factory | Entered Storage 2057 | -7/Storage | Remotely autohacked Sealed Heavy Doors 2286 | -7/Storage | Core integrity fell below 50% 2296 | -7/Storage | Assisted by bots powering up and referring to "LRC-V3" 2302 | -7/Storage | Lost 10 parts (1p3n6u) 2348 | -7/Storage | Core integrity fell below 20% 2353 | -7/Storage | Destroyed by Y-54 Guardian with Gatling Laser Last Messages --------------- 02339_ P-60 Hacker destroyed. 02340_ G-50 Soldier destroyed. 02341_ K-01 Serf collects debris. 02342_ R-06 Scavenger collects Shock Rifle. 02342_ K-01 Serf collects debris. 02344_ Cld. Particle Cannon destroyed. 02345_ Acquired 10 matter. 02345_ K-01 Serf collects debris. 02345_ G-47 Trooper destroyed. 02346_ Trooper 4c destroyed. 02347_ K-01 Serf collects debris. 02347_ K-01 Serf destroyed. 02347_ U-05 Engineer builds a Door. 02347_ R-06 Scavenger collects Aluminum Leg. 02349_ K-01 Serf collects debris. 02350_ U-05 Engineer destroyed. 02352_ Trooper 4f destroyed. 02352_ R-06 Scavenger collects Lgt. Nuclear Core. 02352_ K-01 Serf collects debris. 02353_ Acquired 10 matter. Map ----- +----------------------------------------------------+ | | | | | | | ?????????????????????????????????????? | | ?????????????????????????????????????? | | ?????????????????????????????????????? | | ???????????????########??????????????? | | ???????????????#]] [[[######?????????? | | ???????????????# ] [[[##^ ^#?????????? | | ???????#####???#]*[ ## #?????????? | | ???????#!!!#???# ## ^#?????????? | | ???????#!! #???### ### #?????????? | | ???????#"["##???#T ## ###???????? | | #####??# T#???## = ## T#???????? | | ! #####+########/##### ""#???????? | | ###???????? | | #?????????? | | #?????????? | | ####+###################?????????? | | ##### #? #???????????????? | | ????# #??"""" ????????????????? | | ????# #??"""" ###############?? | | ????# #???"""%+%Y[!![# #?? | | ????# #??? ?#%g[=!|# """" ##? | | ????# #####+###!Y%*!*# ""R" #? | | ????# + [[%kgu@%!; "" " #?? | | ????# ##### #####=g**#% =%% #?? | | ????# #???# #???#=%=[# ????? | | ????##########???# #???#%=%!##+######? | | ?????????????????# #???#!!!%k ## #? | | ?????????????????# #???#%k [ # #? | | ?????????????????# "???#== + #? | | ?????????????????# ???#%####### #? | | ?????????????????# "???# #?????##T #? | | ?????????????????? #???#r#??????#####? | | ?????????????????? ????# #???????????? | | ?????????????????? ??###+######??????? | | ?????????????????? ??# #??????? | | ?????????????????? ??#""" #??????? | | ?????????????????? ??#""" #??????? | | ?????????????????? ??#""" #??????? | | ?????????????????????+ Y #??????? | | ?????????????????????#""" #??????? | | ??????????????????????""" #??????? | | ???????????????????????"" #??????? | | ???????????????????????? #??????? | | ????????????????????????# #####??????? | | ?????????????????????????##??????????? | | ?????????????????????????????????????? | | ?????????????????????????????????????? | +----------------------------------------------------+ Best States ------------- Heat Dissipation 34 Energy Generation 14 Energy Capacity 250 Matter Stores 300 Matter Capacity 300 Sight Range 16 Terrain Scan Density 10 Jamming Range 12 Armor Coverage 300 Power Shielding 33 Propulsion Shielding 33 Evasion (%) 63 Authchip Count 1 Item Schematics ----------------- None Robot Schematics ------------------ None Fabricated ------------ Nothing Alien Tech Used ----------------- None Achievements -------------- A New Friend Challenges ------------ None Game ------ Seed RagnarokRemoteStreamer Manual? 0 Play Time 00:43:20 Cumulative 24.7 hours Start 2022.03.24 @ 16:14:32 End 2022.03.24 @ 18:37:03 Sessions 3 Manual Loads 0 Difficulty Rogue Special Mode None Game No. 30 Rogue 30 Adventurer 0 Explorer 0 Win Type - Total 1 Types 1/0/0/0/0/0/0/0/0 Lore% 24 Gallery% 30 Achievement% 29 Wizard Run 0 Options --------- ASCII 0 Keyboard 0 Movement Numpad Keybinds 0 Fullscreen 1 Font 18/SmallcapsGlow Map View 76x50 Tactical HUD 1 Map Filters NONE Filters NONE Steam 1 RUN: 06ec3a70-d576-4471-9f1e-870f39f64b4f